lending/lending_fUSD_20240509
["ID","MTS","AMOUNT","RATE_DAILY","PERIOD"]
[326673409,1715213454279,-500.0,0.00027397,2]
[326673410,1715213454289,-708.55,0.00027397,2]
[326673411,1715213454298,-500.0,0.00027397,2]
[326673412,1715213454307,-1049.69,0.00027397,2]
[326673413,1715213454317,-500.0,0.00027397,2]
[326673414,1715213454326,-500.0,0.00027397,2]
[326673415,1715213454336,-500.0,0.00027397,2]
[326673416,1715213454345,-500.0,0.00027397,2]
[326673417,1715213454356,-500.0,0.00027397,2]
[326673418,1715213454367,-500.0,0.00027397,2]
[326673419,1715213454376,-500.0,0.00027397,2]
[326673420,1715213454387,-500.0,0.00027397,2]
[326673421,1715213454397,-500.0,0.00027397,2]
[326673422,1715213454407,-520.76,0.00027397,2]
[326673423,1715213454416,-500.0,0.00027397,2]
[326673424,1715213454425,-500.0,0.00027397,2]
[326673425,1715213454435,-500.0,0.00027397,2]
[326673426,1715213454445,-500.0,0.00027397,2]
[326673427,1715213454454,-500.0,0.00027397,2]
[326673428,1715213454463,-500.0,0.00027397,2]
[326673429,1715213454473,-500.0,0.00027397,2]
[326673430,1715213454482,-177.123324,0.00027397,7]
[326673431,1715213454492,-265.11007534,0.00027397,2]
[326673432,1715213454501,-1004.15,0.00027397,2]
[326673433,1715213454511,-500.0,0.00027397,2]
[326673434,1715213454521,-500.0,0.00027397,2]
[326673435,1715213454531,-203.624875,0.00027397,7]
[326673436,1715213454541,-500.0,0.00027397,2]
[326673437,1715213454550,-500.0,0.00027397,2]
[326673438,1715213454559,-506.39926616,0.00027397,2]
[326673439,1715213454569,-500.0,0.00027397,2]
[326673440,1715213454583,-500.0,0.00027397,2]
[326673441,1715213454592,-588.47,0.00027397,2]
[326673442,1715213454601,-500.0,0.00027397,2]
[326673443,1715213454611,-500.0,0.00027397,2]
[326673444,1715213454622,-500.0,0.00027397,2]
[326673445,1715213454632,-500.0,0.00027397,2]
[326673446,1715213454642,-602.85,0.00027397,2]
[326673447,1715213454651,-500.0,0.00027397,2]
[326673448,1715213454661,-500.0,0.00027397,2]
[326673449,1715213454671,-203.624875,0.00027397,7]
[326673450,1715213454680,-500.0,0.00027397,2]
[326673451,1715213454690,-500.0,0.00027397,2]
[326673452,1715213454703,-500.0,0.00027397,2]
[326673453,1715213454713,-151.0,0.00027397,7]
[326673454,1715213454722,-500.0,0.00027397,2]
[326673455,1715213454732,-500.0,0.00027397,2]
[326673456,1715213454741,-1321.76,0.00027397,2]
[326673457,1715213454755,-500.0,0.00027397,2]
[326673458,1715213454764,-828.58,0.00027397,2]
[326673459,1715213454773,-500.0,0.00027397,2]
[326673460,1715213454783,-500.0,0.00027397,2]
[326673461,1715213454794,-500.0,0.00027397,2]
[326673462,1715213454803,-500.0,0.00027397,2]
[326673463,1715213454813,-383.06711938,0.00027397,2]
[326673464,1715213454823,-548.04,0.00027397,2]
[326673465,1715213454833,-1465.91,0.00027397,2]
[326673466,1715213454843,-500.0,0.00027397,2]
[326673467,1715213454853,-936.66,0.00027397,2]
[326673468,1715213454863,-500.0,0.00027397,2]
[326673469,1715213454872,-500.0,0.00027397,2]
[326673470,1715213454882,-500.0,0.00027397,2]
[326673471,1715213454892,-500.0,0.00027397,2]
[326673472,1715213454901,-1476.61,0.00027397,2]
[326673473,1715213454910,-500.0,0.00027397,2]
[326673474,1715213454920,-500.0,0.00027397,2]
[326673475,1715213454929,-500.0,0.00027397,2]
[326673476,1715213454939,-835.64,0.00027397,2]
[326673477,1715213454948,-500.0,0.00027397,2]
[326673478,1715213454957,-645.5997387,0.00027397,2]
[326673479,1715213454966,-500.0,0.00027397,2]
[326673480,1715213454975,-500.0,0.00027397,2]
[326673481,1715213454985,-500.0,0.00027397,2]
[326673482,1715213454994,-513.43800015,0.00027397,2]
[326673483,1715213455003,-500.0,0.00027397,2]
[326673484,1715213455013,-500.0,0.00027397,2]
[326673485,1715213455023,-500.0,0.00027397,2]
[326673486,1715213455032,-500.0,0.00027397,2]
[326673487,1715213455041,-500.0,0.00027397,2]
[326673488,1715213455051,-500.0,0.00027397,2]
[326673489,1715213455060,-592.9,0.00027397,2]
[326673490,1715213455069,-500.0,0.00027397,2]
[326673491,1715213455079,-500.0,0.00027397,2]
[326673492,1715213455088,-500.0,0.00027397,2]
[326673493,1715213455098,-500.0,0.00027397,2]
[326673494,1715213455107,-907.61,0.00027397,2]
[326673495,1715213455117,-500.0,0.00027397,2]
[326673496,1715213455128,-3108.04,0.00027397,2]
[326673497,1715213455144,-1504.03,0.00027397,2]
[326673498,1715213455162,-500.0,0.00027397,2]
[326673499,1715213455172,-1175.75,0.00027397,2]
[326673500,1715213455182,-500.0,0.00027397,2]
[326673501,1715213455192,-505.72694593,0.00027397,2]
[326673502,1715213455202,-500.0,0.00027397,2]
[326673504,1715213455212,-500.0,0.00027397,2]
[326673506,1715213455222,-775.34,0.00027397,2]
[326673508,1715213455232,-500.0,0.00027397,2]
[326673510,1715213455242,-505.7749057,0.00027397,2]
[326673512,1715213455251,-547.23,0.00027397,2]
[326673513,1715213455260,-500.0,0.00027397,2]
[326673515,1715213455270,-500.0,0.00027397,2]
[326673517,1715213455279,-500.0,0.00027397,2]
[326673518,1715213455289,-500.0,0.00027397,2]
[326673519,1715213455299,-506.00392267,0.00027397,2]
[326673520,1715213455308,-764.45,0.00027397,2]
[326673521,1715213455318,-500.0,0.00027397,2]
[326673522,1715213455328,-500.0,0.00027397,2]
[326673523,1715213455338,-500.0,0.00027397,2]
[326673524,1715213455347,-500.0,0.00027397,2]
[326673525,1715213455357,-500.0,0.00027397,2]
[326673526,1715213455366,-510.01265227,0.00027397,2]
[326673527,1715213455380,-936.01,0.00027397,2]
[326673528,1715213455390,-4185.16,0.00027397,2]
[326673529,1715213455400,-500.0,0.00027397,2]
[326673530,1715213455410,-510.30893827,0.00027397,2]
[326673531,1715213455420,-500.0,0.00027397,2]
[326673532,1715213455429,-500.0,0.00027397,2]
[326673533,1715213455438,-500.0,0.00027397,2]
[326673534,1715213455447,-500.0,0.00027397,2]
[326673535,1715213455457,-500.0,0.00027397,2]
[326673536,1715213455467,-500.0,0.00027397,2]
[326673537,1715213455477,-867.01,0.00027397,2]
[326673538,1715213455486,-847.73,0.00027397,2]
[326673539,1715213455496,-500.0,0.00027397,2]
[326673540,1715213455505,-2639.47,0.00027397,2]
[326673541,1715213455515,-500.0,0.00027397,2]
[326673542,1715213455524,-867.83,0.00027397,2]
[326673543,1715213455534,-500.0,0.00027397,2]
[326673544,1715213455544,-500.0,0.00027397,2]
[326673545,1715213455553,-500.0,0.00027397,2]
[326673546,1715213455563,-500.0,0.00027397,2]
[326673547,1715213455572,-500.0,0.00027397,2]
[326673548,1715213455582,-502.55096841,0.00027397,2]
[326673549,1715213455592,-2030.64,0.00027397,2]
[326673550,1715213455601,-500.0,0.00027397,2]
[326673551,1715213455611,-718.89,0.00027397,2]
[326673552,1715213455621,-987.45,0.00027397,2]
[326673553,1715213455631,-500.0,0.00027397,2]
[326673554,1715213455640,-500.0,0.00027397,2]
[326673555,1715213455650,-500.0,0.00027397,2]
[326673556,1715213455660,-500.0,0.00027397,2]
[326673557,1715213455670,-622.96,0.00027397,2]
[326673558,1715213455679,-500.0,0.00027397,2]
[326673559,1715213455689,-500.0,0.00027397,2]
[326673560,1715213455699,-500.0,0.00027397,2]
[326673561,1715213455709,-917.61,0.00027397,2]
[326673562,1715213455718,-500.0,0.00027397,2]
[326673563,1715213455729,-505.26288828,0.00027397,2]
[326673564,1715213455738,-500.0,0.00027397,2]
[326673565,1715213455753,-500.0,0.00027397,2]
[326673566,1715213455763,-500.0,0.00027397,2]
[326673567,1715213455772,-1046.76,0.00027397,2]
[326673568,1715213455781,-964.57,0.00027397,2]
[326673569,1715213455792,-500.0,0.00027397,2]
[326673570,1715213455801,-500.0,0.00027397,2]
[326673571,1715213455810,-500.0,0.00027397,2]
[326673572,1715213455820,-849.09,0.00027397,2]
[326673573,1715213455832,-1410.5,0.00027397,2]
[326673574,1715213455841,-500.0,0.00027397,2]
[326673575,1715213455851,-500.0,0.00027397,2]
[326673576,1715213455860,-500.0,0.00027397,2]
[326673577,1715213455870,-500.0,0.00027397,2]
[326673578,1715213455880,-500.0,0.00027397,2]
[326673579,1715213455889,-500.0,0.00027397,2]
[326673580,1715213455899,-500.0,0.00027397,2]
[326673581,1715213455908,-507.40056485,0.00027397,2]
[326673582,1715213455918,-2288.86,0.00027397,2]
[326673583,1715213455927,-500.0,0.00027397,2]
[326673584,1715213455936,-515.06,0.00027397,2]
[326673585,1715213455946,-500.0,0.00027397,2]
[326673586,1715213455955,-1124.5,0.00027397,2]
[326673587,1715213455964,-645.6,0.00027397,2]
[326673588,1715213455974,-500.0,0.00027397,2]
[326673589,1715213455984,-500.0,0.00027397,2]
[326673590,1715213455996,-1294.23,0.00027397,2]
[326673591,1715213456005,-500.0,0.00027397,2]
[326673592,1715213456014,-500.0,0.00027397,2]
[326673593,1715213456024,-500.0,0.00027397,2]
[326673594,1715213456033,-790.32,0.00027397,2]
[326673595,1715213456042,-500.0,0.00027397,2]
[326673596,1715213456054,-846.42,0.00027397,2]
[326673597,1715213456065,-1332.47,0.00027397,2]
[326673598,1715213456077,-500.0,0.00027397,2]
[326673599,1715213456087,-500.0,0.00027397,2]
[326673600,1715213456097,-500.0,0.00027397,2]
[326673601,1715213456107,-500.0,0.00027397,2]
[326673602,1715213456117,-502.91812714,0.00027397,2]
[326673603,1715213456129,-500.0,0.00027397,2]
[326673604,1715213456138,-500.0,0.00027397,2]
[326673605,1715213456148,-500.0,0.00027397,2]
[326673606,1715213456157,-2372.1,0.00027397,2]
[326673607,1715213456167,-500.0,0.00027397,2]
[326673608,1715213456176,-500.0,0.00027397,2]
[326673609,1715213456185,-500.0,0.00027397,2]
[326673610,1715213456194,-2058.74,0.00027397,2]
[326673611,1715213456204,-500.0,0.00027397,2]
[326673612,1715213456213,-500.0,0.00027397,2]
[326673613,1715213456223,-500.0,0.00027397,2]
[326673614,1715213456232,-500.0,0.00027397,2]
[326673615,1715213456241,-500.0,0.00027397,2]
[326673616,1715213456250,-500.0,0.00027397,2]
[326673617,1715213456260,-503.79500377,0.00027397,2]
[326673618,1715213456269,-500.0,0.00027397,2]
[326673619,1715213456279,-500.0,0.00027397,2]
[326673620,1715213456288,-500.0,0.00027397,2]
[326673621,1715213456297,-500.0,0.00027397,2]
[326673622,1715213456306,-500.0,0.00027397,2]
[326673623,1715213456315,-1331.86,0.00027397,2]
[326673624,1715213456324,-1503.47,0.00027397,2]
[326673625,1715213456333,-3845.46,0.00027397,2]
[326673626,1715213456342,-500.0,0.00027397,2]
[326673627,1715213456353,-1671.96,0.00027397,2]
[326673628,1715213456362,-500.0,0.00027397,2]
[326673629,1715213456373,-632.9,0.00027397,2]
[326673630,1715213456382,-500.0,0.00027397,2]
[326673631,1715213456391,-500.0,0.00027397,2]
[326673632,1715213456400,-500.0,0.00027397,2]
[326673633,1715213456409,-500.0,0.00027397,2]
[326673634,1715213456418,-500.0,0.00027397,2]
[326673635,1715213456427,-848.24,0.00027397,2]
[326673636,1715213456436,-500.0,0.00027397,2]
[326673637,1715213456446,-558.56,0.00027397,2]
[326673638,1715213456455,-503.80756858,0.00027397,2]
[326673639,1715213456464,-501.62131443,0.00027397,2]
[326673640,1715213456473,-800.89,0.00027397,2]
[326673641,1715213456482,-966.06,0.00027397,2]
[326673642,1715213456491,-500.0,0.00027397,2]
[326673643,1715213456500,-2764.75,0.00027397,2]
[326673644,1715213456509,-500.0,0.00027397,2]
[326673645,1715213456519,-1375.15,0.00027397,2]
[326673646,1715213456528,-500.0,0.00027397,2]
[326673647,1715213456537,-500.0,0.00027397,2]
[326673648,1715213456546,-500.0,0.00027397,2]
[326673649,1715213456555,-500.0,0.00027397,2]
[326673650,1715213456565,-500.0,0.00027397,2]
[326673651,1715213456574,-500.0,0.00027397,2]
[326673652,1715213456583,-500.0,0.00027397,2]
[326673653,1715213456592,-500.0,0.00027397,2]
[326673654,1715213456601,-500.0,0.00027397,2]
[326673655,1715213456610,-1322.99,0.00027397,2]
[326673656,1715213456621,-486.51989776,0.00027397,2]
[326673657,1715213456630,-2062.81,0.00027397,2]
[326673658,1715213456777,-500.0,0.00027397,2]
[326673659,1715213456787,-500.0,0.00027397,2]
[326673660,1715213456797,-500.0,0.00027397,2]
[326673661,1715213456806,-500.0,0.00027397,2]
[326673662,1715213456815,-500.0,0.00027397,2]
[326673663,1715213456825,-2471.1,0.00027397,2]
[326673664,1715213456836,-500.0,0.00027397,2]
[326673665,1715213456845,-500.0,0.00027397,2]
[326673666,1715213456854,-771.61,0.00027397,2]
[326673667,1715213456863,-2601.61,0.00027397,2]
[326673668,1715213456872,-200.54885542,0.00027397,2]
[326673669,1715213456881,-768.52,0.00027397,2]
[326673670,1715213456891,-15619.64,0.00027397,2]
[326673671,1715213456900,-500.0,0.00027397,2]
[326673672,1715213456909,-500.0,0.00027397,2]
[326673673,1715213456918,-877.2,0.00027397,2]
[326673674,1715213456927,-500.0,0.00027397,2]
[326673675,1715213456937,-500.0,0.00027397,2]
[326673676,1715213456946,-500.0,0.00027397,2]
[326673677,1715213456956,-580.81,0.00027397,2]
[326673678,1715213456965,-500.0,0.00027397,2]
[326673679,1715213456976,-500.0,0.00027397,2]
[326673680,1715213456985,-500.0,0.00027397,2]
[326673681,1715213456994,-500.0,0.00027397,2]
[326673682,1715213457003,-500.0,0.00027397,2]
[326673683,1715213457013,-807.0,0.00027397,2]
[326673684,1715213457022,-500.0,0.00027397,2]
[326673685,1715213457031,-500.0,0.00027397,2]
[326673686,1715213457040,-505.64981653,0.00027397,2]
[326673687,1715213457050,-500.0,0.00027397,2]
[326673688,1715213457059,-179.28260079,0.00027397,2]
[326673689,1715213457068,-500.0,0.00027397,2]
[326673690,1715213457077,-500.0,0.00027397,2]
[326673691,1715213457086,-505.04681924,0.00027397,2]
[326673692,1715213457095,-500.0,0.00027397,2]
[326673693,1715213457105,-500.0,0.00027397,2]
[326673694,1715213457114,-555.61,0.00027397,2]
[326673695,1715213457125,-500.0,0.00027397,2]
[326673696,1715213457134,-500.0,0.00027397,2]
[326673697,1715213457143,-500.0,0.00027397,2]
[326673698,1715213457152,-547.18,0.00027397,2]
[326673699,1715213457162,-697.81,0.00027397,2]
[326673700,1715213457171,-758.05,0.00027397,2]
[326673701,1715213457180,-762.94,0.00027397,2]
[326673702,1715213457189,-500.0,0.00027397,2]
[326673703,1715213457198,-522.0,0.00027397,2]
[326673704,1715213457207,-8280.01,0.00027397,2]
[326673705,1715213457217,-500.0,0.00027397,2]
[326673706,1715213457226,-500.0,0.00027397,2]
[326673707,1715213457236,-500.0,0.00027397,2]
[326673708,1715213457245,-500.0,0.00027397,2]
[326673709,1715213457254,-501.58018976,0.00027397,2]
[326673710,1715213457264,-506.54659915,0.00027397,2]
[326673711,1715213457272,-500.0,0.00027397,2]
[326673712,1715213457282,-500.0,0.00027397,2]
[326673713,1715213457291,-502.5855094,0.00027397,2]
[326673714,1715213457300,-500.0,0.00027397,2]
[326673715,1715213457310,-500.0,0.00027397,2]
[326673716,1715213457319,-500.0,0.00027397,2]
[326673717,1715213457328,-500.0,0.00027397,2]
[326673718,1715213457338,-500.0,0.00027397,2]
[326673719,1715213457348,-500.0,0.00027397,2]
[326673720,1715213457358,-500.0,0.00027397,2]
[326673721,1715213457368,-500.0,0.00027397,2]
[326673722,1715213457377,-500.0,0.00027397,2]
[326673723,1715213457387,-500.0,0.00027397,2]
[326673724,1715213457401,-1754.82,0.00027397,2]
[326673725,1715213457414,-500.0,0.00027397,2]
[326673726,1715213457424,-500.0,0.00027397,2]
[326673727,1715213457434,-500.0,0.00027397,2]
[326673728,1715213457444,-962.66,0.00027397,2]
[326673729,1715213457454,-500.0,0.00027397,2]
[326673730,1715213457463,-500.0,0.00027397,2]
[326673731,1715213457473,-500.0,0.00027397,2]
[326673732,1715213457482,-500.0,0.00027397,2]
[326673733,1715213457491,-500.0,0.00027397,2]
[326673734,1715213457501,-500.0,0.00027397,2]
[326673735,1715213457511,-561.1,0.00027397,2]
[326673736,1715213457521,-500.0,0.00027397,2]
[326673737,1715213457531,-500.0,0.00027397,2]
[326673738,1715213457540,-500.0,0.00027397,2]
[326673739,1715213457550,-500.0,0.00027397,2]
[326673740,1715213457560,-500.0,0.00027397,2]
[326673741,1715213457569,-2459.38,0.00027397,2]
[326673742,1715213457579,-607.44,0.00027397,2]
[326673743,1715213457589,-624.6,0.00027397,2]
[326673744,1715213457598,-500.0,0.00027397,2]
[326673745,1715213457608,-1630.16,0.00027397,2]
[326673746,1715213457618,-978.37,0.00027397,2]
[326673747,1715213457628,-500.0,0.00027397,2]
[326673748,1715213457638,-500.0,0.00027397,2]
[326673749,1715213457648,-780.42,0.00027397,2]
[326673750,1715213457657,-500.0,0.00027397,2]
[326673751,1715213457667,-500.0,0.00027397,2]
[326673752,1715213457677,-500.0,0.00027397,2]
[326673753,1715213457690,-500.0,0.00027397,2]
[326673754,1715213457699,-500.0,0.00027397,2]
[326673755,1715213457709,-500.0,0.00027397,2]
[326673756,1715213457718,-500.0,0.00027397,2]
[326673757,1715213457728,-500.0,0.00027397,2]
[326673758,1715213457738,-500.0,0.00027397,2]
[326673759,1715213457749,-500.0,0.00027397,2]
[326673760,1715213457761,-8826.44,0.00027397,2]
[326673761,1715213457771,-500.0,0.00027397,2]
[326673762,1715213457780,-500.0,0.00027397,2]
[326673763,1715213457791,-502.67024315,0.00027397,2]
[326673764,1715213457801,-763.04,0.00027397,2]
[326673765,1715213457810,-500.0,0.00027397,2]
[326673766,1715213457820,-747.43,0.00027397,2]
[326673767,1715213457831,-500.0,0.00027397,2]
[326673768,1715213457842,-2868.9,0.00027397,2]
[326673769,1715213457851,-500.0,0.00027397,2]
[326673770,1715213457861,-500.0,0.00027397,2]
[326673771,1715213457871,-500.0,0.00027397,2]
[326673772,1715213457881,-500.0,0.00027397,2]
[326673773,1715213457891,-500.0,0.00027397,2]
[326673774,1715213457901,-1465.72,0.00027397,2]
[326673775,1715213457910,-517.79303433,0.00027397,2]
[326673776,1715213457920,-510.20375801,0.00027397,2]
[326673777,1715213457929,-500.0,0.00027397,2]
[326673778,1715213457939,-500.0,0.00027397,2]
[326673779,1715213457949,-743.96,0.00027397,2]
[326673780,1715213457958,-524.25,0.00027397,2]
[326673781,1715213457967,-500.0,0.00027397,2]
[326673782,1715213457977,-500.0,0.00027397,2]
[326673783,1715213457987,-517.10479179,0.00027397,2]
[326673784,1715213457996,-500.0,0.00027397,2]
[326673785,1715213458005,-1376.58,0.00027397,2]
[326673786,1715213458015,-500.0,0.00027397,2]
[326673787,1715213458024,-7562.83,0.00027397,2]
[326673788,1715213458033,-1384.79,0.00027397,2]
[326673789,1715213458043,-734.49,0.00027397,2]
[326673790,1715213458053,-1448.23,0.00027397,2]
[326673791,1715213458062,-500.0,0.00027397,2]
[326673792,1715213458071,-500.0,0.00027397,2]
[326673793,1715213458080,-500.0,0.00027397,2]
[326673794,1715213458090,-500.0,0.00027397,2]
[326673795,1715213458099,-500.0,0.00027397,2]
[326673796,1715213458108,-500.0,0.00027397,2]
[326673797,1715213458118,-624.95,0.00027397,2]
[326673798,1715213458129,-1651.57,0.00027397,2]
[326673799,1715213458138,-800.56,0.00027397,2]
[326673800,1715213458147,-928.19,0.00027397,2]
[326673801,1715213458156,-505.6893498,0.00027397,2]
[326673802,1715213458166,-500.0,0.00027397,2]
[326673803,1715213458178,-500.0,0.00027397,2]
[326673804,1715213458188,-623.48,0.00027397,2]
[326673805,1715213458198,-991.92,0.00027397,2]
[326673806,1715213458208,-899.59,0.00027397,2]
[326673807,1715213458217,-500.0,0.00027397,2]
[326673808,1715213458227,-668.82,0.00027397,2]
[326673809,1715213458236,-906.84,0.00027397,2]
[326673810,1715213458245,-500.0,0.00027397,2]
[326673811,1715213458254,-2424.25,0.00027397,2]
[326673812,1715213458263,-500.0,0.00027397,2]
[326673813,1715213458273,-500.0,0.00027397,2]
[326673814,1715213458282,-1492.97,0.00027397,2]
[326673815,1715213458291,-500.0,0.00027397,2]
[326673816,1715213458300,-1215.98,0.00027397,2]
[326673817,1715213458310,-535.06,0.00027397,2]
[326673818,1715213458320,-513.61523926,0.00027397,2]
[326673819,1715213458329,-500.0,0.00027397,2]
[326673820,1715213458338,-321.00829821,0.00027397,2]
[326673821,1715213458348,-10581.62,0.00027397,2]
[326673822,1715213458357,-500.0,0.00027397,2]
[326673823,1715213458367,-500.0,0.00027397,2]
[326673824,1715213458376,-500.0,0.00027397,2]
[326673825,1715213458386,-936.48,0.00027397,2]
[326673826,1715213458395,-500.0,0.00027397,2]
[326673827,1715213458405,-804.47,0.00027397,2]
[326673828,1715213458415,-500.0,0.00027397,2]
[326673829,1715213458424,-500.0,0.00027397,2]
[326673830,1715213458433,-500.24,0.00027397,2]
[326673831,1715213458442,-500.0,0.00027397,2]
[326673832,1715213458451,-500.0,0.00027397,2]
[326673833,1715213458460,-500.0,0.00027397,2]
[326673834,1715213458470,-500.0,0.00027397,2]
[326673835,1715213458479,-500.0,0.00027397,2]
[326673836,1715213458489,-500.0,0.00027397,2]
[326673837,1715213458498,-500.0,0.00027397,2]
[326673838,1715213458508,-500.0,0.00027397,2]
[326673839,1715213458517,-500.0,0.00027397,2]
[326673840,1715213458527,-500.0,0.00027397,2]
[326673841,1715213458537,-701.08,0.00027397,2]
[326673842,1715213458546,-500.0,0.00027397,2]
[326673843,1715213458556,-500.0,0.00027397,2]
[326673844,1715213458565,-150.0,0.00027397,2]
[326673845,1715213458575,-289.32,0.00027397,2]
[326673846,1715213458584,-154.55367259,0.00027444,2]
[326673847,1715213458594,-157.050908,0.00027448,18]
[326673848,1715213458603,-2301.0,0.00027484,2]
[326673849,1715213458613,-972.0,0.00027484,2]
[326673850,1715213458623,-1397.0,0.00027484,2]
[326673851,1715213458632,-1788.0,0.00027484,2]
[326673852,1715213458642,-543.0,0.00027484,2]
[326673853,1715213458651,-1260.0,0.00027484,2]
[326673854,1715213458660,-1226.0,0.00027484,2]
[326673855,1715213458670,-162.0,0.00027484,2]
[326673856,1715213458680,-809.0,0.00027484,2]
[326673857,1715213458689,-421.0,0.00027484,2]
[326673858,1715213458698,-438.0,0.00027484,2]
[326673859,1715213458708,-611.0,0.00027484,2]
[326673860,1715213458717,-150.0,0.00027484,2]
[326673861,1715213458727,-150.0,0.00027484,2]
[326673862,1715213458737,-2431.0,0.00027484,2]
[326673863,1715213458747,-1478.0,0.00027484,2]
[326673864,1715213458760,-1645.0,0.00027484,2]
[326673865,1715213458769,-444.0,0.00027484,2]
[326673866,1715213458780,-1138.0,0.00027484,2]
[326673867,1715213458790,-215.0,0.00027484,2]
[326673868,1715213458801,-3154.0,0.00027484,2]
[326673869,1715213458810,-4676.486,0.00027484,2]
[326673870,1715213458820,-5742.0,0.00027484,2]
[326673871,1715213458831,-37783.0,0.00027484,2]
[326673872,1715213458841,-1058.0,0.00027484,2]
[326673873,1715213458850,-192.3147839,0.00027576,2]
[326673874,1715213458859,-150.0,0.000276,5]
[326673875,1715213458871,-168.56150952,0.00027667,2]
[326673876,1715213458881,-157.050908,0.00027748,18]
[326673877,1715213458890,-337.93585131,0.00027784,2]
[326673878,1715213458900,-1000.0,0.00027787,2]
[326673879,1715213458911,-523.24,0.000278,2]
[326673880,1715213458920,-192.3147839,0.00027834,2]
[326673881,1715213458930,-150.0,0.00027844,2]
[326673882,1715213458939,-158.10884051,0.00027894,2]
[326673883,1715213458953,-166.66666666,0.00027896,2]
[326673884,1715213458964,-9718.48,0.00027945,2]
[326673885,1715213458975,-500.0,0.00027945,2]
[326673886,1715213458985,-168.99,0.00027945,5]
[326673887,1715213458994,-518.80154697,0.00027945,5]
[326673888,1715213459004,-500.0,0.00027945,5]
[326673889,1715213459014,-500.0,0.00027945,5]
[326673890,1715213459023,-500.0,0.00027945,5]
[326673891,1715213459034,-500.0,0.00027945,5]
[326673892,1715213459044,-500.0,0.00027945,5]
[326673893,1715213459053,-500.0,0.00027945,5]
[326673894,1715213459063,-500.0,0.00027945,5]
[326673895,1715213459073,-500.0,0.00027945,5]
[326673896,1715213459082,-500.0,0.00027945,5]
[326673897,1715213459092,-500.0,0.00027945,5]
[326673898,1715213459101,-500.0,0.00027945,5]
[326673899,1715213459110,-500.0,0.00027945,5]
[326673900,1715213459120,-500.0,0.00027945,5]
[326673901,1715213459132,-500.0,0.00027945,5]
[326673902,1715213459142,-500.0,0.00027945,5]
[326673903,1715213459151,-500.0,0.00027945,5]
[326673904,1715213459160,-500.0,0.00027945,5]
[326673905,1715213459170,-500.0,0.00027945,5]
[326673906,1715213459179,-500.0,0.00027945,5]
[326673907,1715213459188,-500.0,0.00027945,5]
[326673908,1715213459198,-500.0,0.00027945,5]
[326673909,1715213459207,-500.0,0.00027945,5]
[326673910,1715213459216,-500.0,0.00027945,5]
[326673911,1715213459347,-500.0,0.00027945,5]
[326673912,1715213459357,-500.0,0.00027945,5]
[326673913,1715213459367,-500.0,0.00027945,5]
[326673914,1715213459376,-500.0,0.00027945,5]
[326673915,1715213459386,-500.0,0.00027945,5]